fUST/lending_fUST_20250713
["ID","MTS","AMOUNT","RATE_DAILY","PERIOD"]
[371737366,1752408655423,-460.0,0.00018082,2]
[371737367,1752408655432,-514.41046959,0.00018082,2]
[371737368,1752408655441,-183.33,0.00018082,2]
[371737369,1752408655451,-460.0,0.00018082,2]
[371737370,1752408655460,-460.0,0.00018082,2]
[371737371,1752408655470,-681.44,0.00018082,2]
[371737372,1752408655479,-151.0,0.00018082,2]
[371737373,1752408655489,-460.0,0.00018082,2]
[371737374,1752408655499,-460.0,0.00018082,2]
[371737375,1752408655508,-535.71,0.00018082,2]
[371737376,1752408655517,-460.0,0.00018082,2]
[371737377,1752408655526,-608.36393681,0.00018082,2]
[371737378,1752408655535,-201.2,0.00018082,2]
[371737379,1752408655545,-2008.35,0.00018082,2]
[371737380,1752408655555,-246.529174,0.00018082,2]
[371737381,1752408655564,-509.47,0.00018082,2]
[371737382,1752408655573,-460.0,0.00018082,2]
[371737383,1752408655583,-246.529174,0.00018082,2]
[371737384,1752408655593,-625.25,0.00018082,2]
[371737385,1752408655603,-460.0,0.00018082,2]
[371737386,1752408655612,-860.44,0.00018082,2]
[371737387,1752408655621,-480.85,0.00018082,2]
[371737388,1752408655631,-2541.88,0.00018082,2]
[371737389,1752408655640,-460.0,0.00018082,2]
[371737390,1752408655651,-460.0,0.00018082,2]
[371737391,1752408655660,-508.56,0.00018082,2]
[371737392,1752408655669,-1859.21,0.00018082,2]
[371737393,1752408655679,-796.49,0.00018082,2]
[371737394,1752408655688,-460.0,0.00018082,2]
[371737395,1752408655697,-460.0,0.00018082,2]
[371737396,1752408655707,-460.0,0.00018082,2]
[371737397,1752408655716,-460.0,0.00018082,2]
[371737398,1752408655725,-593.15,0.00018082,2]
[371737399,1752408655735,-661.39,0.00018082,2]
[371737400,1752408655744,-460.0,0.00018082,2]
[371737401,1752408655754,-460.0,0.00018082,2]
[371737402,1752408655763,-460.0,0.00018082,2]
[371737403,1752408655773,-460.0,0.00018082,2]
[371737404,1752408655782,-1329.88,0.00018082,2]
[371737405,1752408655791,-476.56,0.00018082,2]
[371737406,1752408655801,-2597.34,0.00018082,2]
[371737407,1752408655811,-1127.18,0.00018082,2]
[371737408,1752408655822,-460.0,0.00018082,2]
[371737409,1752408655831,-460.0,0.00018082,2]
[371737410,1752408655841,-563.29,0.00018082,2]
[371737411,1752408655851,-460.0,0.00018082,2]
[371737412,1752408655860,-707.62,0.00018082,2]
[371737413,1752408655870,-460.0,0.00018082,2]
[371737414,1752408655880,-500.94,0.00018082,2]
[371737415,1752408655890,-460.0,0.00018082,2]
[371737416,1752408655900,-602.57,0.00018082,2]
[371737417,1752408655910,-939.64,0.00018082,2]
[371737418,1752408655919,-460.0,0.00018082,2]
[371737419,1752408655928,-460.0,0.00018082,2]
[371737420,1752408655937,-460.0,0.00018082,2]
[371737421,1752408655946,-1083.77,0.00018082,2]
[371737422,1752408655956,-525.69,0.00018082,2]
[371737423,1752408655965,-151.0,0.00018082,2]
[371737424,1752408655975,-460.0,0.00018082,2]
[371737425,1752408655984,-460.0,0.00018082,2]
[371737426,1752408655993,-460.0,0.00018082,2]
[371737427,1752408656003,-460.0,0.00018082,2]
[371737428,1752408656012,-151.0,0.00018082,2]
[371737429,1752408656021,-662.48,0.00018082,2]
[371737430,1752408656031,-192.7,0.00018082,2]
[371737431,1752408656040,-460.0,0.00018082,2]
[371737432,1752408656049,-460.0,0.00018082,2]
[371737433,1752408656059,-460.0,0.00018082,2]
[371737434,1752408656068,-2526.29,0.00018082,2]
[371737435,1752408656077,-694.75,0.00018082,2]
[371737436,1752408656086,-1097.19,0.00018082,2]
[371737437,1752408656096,-460.0,0.00018082,2]
[371737438,1752408656105,-578.96,0.00018082,2]
[371737439,1752408656114,-560.96,0.00018082,2]
[371737440,1752408656123,-1292.24,0.00018082,2]
[371737441,1752408656132,-500.52366226,0.00018121,2]
[371737442,1752408656141,-505.46469037,0.00018121,2]
[371737443,1752408656152,-1000.0,0.00018121,2]
[371737444,1752408656161,-1002.07498449,0.00018121,2]
[371737445,1752408656170,-500.0,0.00018121,2]
[371737446,1752408656180,-503.94399516,0.00018121,2]
[371737447,1752408656190,-1000.0,0.00018121,2]
[371737448,1752408656199,-500.0,0.00018121,2]
[371737449,1752408656211,-500.0,0.00018121,2]
[371737450,1752408656220,-216.764323,0.00018141,2]
[371737451,1752408656230,-216.764323,0.00018141,2]
[371737452,1752408656239,-2899.58639643,0.00018141,2]
[371737453,1752408656249,-151.0,0.00018247,2]
[371737454,1752408656258,-151.970896,0.00018247,2]
[371737455,1752408656267,-151.0,0.00018247,2]
[371737456,1752408656277,-151.0,0.00018247,2]
[371737457,1752408656286,-153.686131,0.00018247,2]
[371737458,1752408656296,-2770.38015596,0.00018256,2]
[371737459,1752408656305,-836.956561,0.00018296,2]
[371737460,1752408656315,-160.0,0.00018296,2]
[371737461,1752408656325,-160.0,0.00018296,2]
[371737462,1752408656334,-160.0,0.00018296,2]
[371737463,1752408656344,-160.0,0.00018335,2]
[371737464,1752408656354,-214.29528141,0.00018335,2]
[371737465,1752408656363,-230.68503973,0.00018335,2]
[371737466,1752408656376,-215.42595214,0.00018335,2]
[371737467,1752408656386,-12598.31844336,0.00018335,2]
[371737468,1752408656395,-838.53376533,0.00018335,2]
[371737469,1752408656405,-160.0,0.00018335,2]
[371737470,1752408656415,-160.0,0.00018335,2]
[371737471,1752408656425,-160.0,0.00018335,2]
[371737472,1752408656434,-160.0,0.00018335,2]
[371737473,1752408656443,-500.0,0.00018346,2]
[371737474,1752408656453,-257.716072,0.00018355,2]
[371737475,1752408656462,-289.935429,0.00018355,2]
[371737476,1752408656471,-289.935429,0.00018355,2]
[371737477,1752408656481,-238.845428,0.00018355,2]
[371737478,1752408656490,-238.845428,0.00018355,2]
[371737479,1752408656499,-320.05533489,0.00018356,2]
[371737480,1752408656509,-460.0,0.00018356,2]
[371737481,1752408656518,-289.935429,0.00018356,2]
[371737482,1752408656527,-289.935429,0.00018356,2]
[371737483,1752408656537,-460.0,0.00018356,2]
[371737484,1752408656546,-545.2,0.00018356,2]
[371737485,1752408656555,-591.03,0.00018356,2]
[371737486,1752408656566,-238.845428,0.00018356,2]
[371737487,1752408656575,-460.0,0.00018356,2]
[371737488,1752408656585,-238.845428,0.00018356,2]
[371737489,1752408656594,-460.0,0.00018356,2]
[371737490,1752408656603,-460.0,0.00018356,2]
[371737491,1752408656613,-460.0,0.00018356,2]
[371737492,1752408656622,-460.0,0.00018356,2]
[371737493,1752408656631,-510.43,0.00018356,2]
[371737494,1752408656641,-460.0,0.00018356,2]
[371737495,1752408656652,-460.0,0.00018356,2]
[371737496,1752408656661,-460.0,0.00018356,2]
[371737497,1752408656671,-174.32,0.00018356,2]
[371737498,1752408656680,-460.0,0.00018356,2]
[371737499,1752408656690,-460.0,0.00018356,2]
[371737500,1752408656700,-681.44,0.00018356,2]
[371737501,1752408656709,-229.27360242,0.00018356,2]
[371737502,1752408656719,-460.0,0.00018356,2]
[371737503,1752408656728,-535.71,0.00018356,2]
[371737504,1752408656738,-460.0,0.00018356,2]
[371737505,1752408656747,-2008.35,0.00018356,2]
[371737506,1752408656756,-509.47,0.00018356,2]
[371737507,1752408656766,-460.0,0.00018356,2]
[371737508,1752408656776,-625.25,0.00018356,2]
[371737509,1752408656785,-460.0,0.00018356,2]
[371737510,1752408656794,-860.44,0.00018356,2]
[371737511,1752408656804,-480.85,0.00018356,2]
[371737512,1752408656814,-2541.88,0.00018356,2]
[371737513,1752408656825,-460.0,0.00018356,2]
[371737514,1752408656835,-446.5102063,0.00018356,2]
[371737515,1752408656844,-508.56,0.00018356,2]
[371737516,1752408656854,-1859.21,0.00018356,2]
[371737517,1752408656863,-796.49,0.00018356,2]
[371737518,1752408656873,-489.24275503,0.00018356,2]
[371737519,1752408656882,-460.0,0.00018356,2]
[371737520,1752408656891,-460.0,0.00018356,2]
[371737521,1752408656902,-460.0,0.00018356,2]
[371737522,1752408656912,-593.15,0.00018356,2]
[371737523,1752408656921,-661.39,0.00018356,2]
[371737524,1752408656930,-460.0,0.00018356,2]
[371737525,1752408656939,-460.0,0.00018356,2]
[371737526,1752408656949,-460.0,0.00018356,2]
[371737527,1752408656958,-1329.88,0.00018356,2]
[371737528,1752408656968,-476.56,0.00018356,2]
[371737529,1752408656977,-2597.34,0.00018356,2]
[371737530,1752408656987,-1127.18,0.00018356,2]
[371737531,1752408656997,-460.0,0.00018356,2]
[371737532,1752408657007,-460.0,0.00018356,2]
[371737533,1752408657016,-460.0,0.00018356,2]
[371737534,1752408657025,-707.62,0.00018356,2]
[371737535,1752408657036,-460.0,0.00018356,2]
[371737536,1752408657047,-500.94,0.00018356,2]
[371737537,1752408657057,-460.0,0.00018356,2]
[371737538,1752408657067,-602.57,0.00018356,2]
[371737539,1752408657077,-939.64,0.00018356,2]
[371737540,1752408657087,-460.0,0.00018356,2]
[371737541,1752408657096,-460.0,0.00018356,2]
[371737542,1752408657105,-460.0,0.00018356,2]
[371737543,1752408657115,-1083.77,0.00018356,2]
[371737544,1752408657124,-525.69,0.00018356,2]
[371737545,1752408657133,-460.0,0.00018356,2]
[371737546,1752408657142,-460.0,0.00018356,2]
[371737547,1752408657153,-460.0,0.00018356,2]
[371737548,1752408657162,-460.0,0.00018356,2]
[371737549,1752408657172,-662.48,0.00018356,2]
[371737550,1752408657181,-460.0,0.00018356,2]
[371737551,1752408657190,-460.0,0.00018356,2]
[371737552,1752408657200,-460.0,0.00018356,2]
[371737553,1752408657209,-2526.29,0.00018356,2]
[371737554,1752408657218,-694.75,0.00018356,2]
[371737555,1752408657227,-1097.19,0.00018356,2]
[371737556,1752408657237,-460.0,0.00018356,2]
[371737557,1752408657246,-578.96,0.00018356,2]
[371737558,1752408657255,-560.96,0.00018356,2]
[371737559,1752408657265,-1292.24,0.00018356,2]
[371737560,1752408657274,-1000.0,0.00018359,2]
[371737561,1752408657283,-590.40244496,0.00018378,2]
[371737562,1752408657293,-160.0,0.00018378,2]
[371737563,1752408657303,-2000.0,0.00018416,2]
[371737564,1752408657312,-2000.0,0.00018416,2]
[371737565,1752408657322,-740.24514543,0.00018416,2]
[371737566,1752408657332,-2000.0,0.00018416,2]
[371737567,1752408657341,-366.56020996,0.0001843,2]
[371737568,1752408657351,-500.0,0.0001843,2]
[371737569,1752408657360,-505.49074743,0.0001843,2]
[371737570,1752408657370,-500.0,0.0001843,2]
[371737571,1752408657383,-500.0,0.0001843,2]
[371737572,1752408657392,-501.18861077,0.0001843,2]
[371737573,1752408657403,-500.0,0.0001843,2]
[371737574,1752408657412,-500.0,0.0001843,2]
[371737575,1752408657421,-521.74967666,0.00018447,2]
[371737576,1752408657431,-2899.58639643,0.00018452,2]
[371737577,1752408657441,-151.0,0.00018452,2]
[371737578,1752408657450,-151.0,0.00018452,2]
[371737579,1752408657460,-460.0,0.0001863,2]
[371737580,1752408657470,-216.764323,0.0001863,2]
[371737581,1752408657479,-216.764323,0.0001863,2]
[371737582,1752408657488,-460.0,0.0001863,2]
[371737583,1752408657497,-545.2,0.0001863,2]
[371737584,1752408657603,-591.03,0.0001863,2]
[371737585,1752408657613,-460.0,0.0001863,2]
[371737586,1752408657622,-525.00570465,0.0001863,2]
[371737587,1752408657631,-460.0,0.0001863,2]
[371737588,1752408657641,-467.65174943,0.0001863,2]
[371737589,1752408657651,-460.0,0.0001863,2]
[371737590,1752408657660,-510.43,0.0001863,2]
[371737591,1752408657669,-460.0,0.0001863,2]
[371737592,1752408657679,-460.0,0.0001863,2]
[371737593,1752408657688,-460.0,0.0001863,2]
[371737594,1752408657698,-460.0,0.0001863,2]
[371737595,1752408657707,-681.44,0.0001863,2]
[371737596,1752408657717,-460.0,0.0001863,2]
[371737597,1752408657726,-535.71,0.0001863,2]
[371737598,1752408657735,-460.0,0.0001863,2]
[371737599,1752408657745,-2008.35,0.0001863,2]
[371737600,1752408657754,-509.47,0.0001863,2]
[371737601,1752408657763,-460.0,0.0001863,2]
[371737602,1752408657772,-625.25,0.0001863,2]
[371737603,1752408657781,-460.0,0.0001863,2]
[371737604,1752408657791,-860.44,0.0001863,2]
[371737605,1752408657800,-480.85,0.0001863,2]
[371737606,1752408657809,-2541.88,0.0001863,2]
[371737607,1752408657819,-460.0,0.0001863,2]
[371737608,1752408657828,-508.56,0.0001863,2]
[371737609,1752408657837,-1859.21,0.0001863,2]
[371737610,1752408657845,-796.49,0.0001863,2]
[371737611,1752408657854,-460.0,0.0001863,2]
[371737612,1752408657864,-460.0,0.0001863,2]
[371737613,1752408657873,-459.20843279,0.0001863,2]
[371737614,1752408657882,-593.15,0.0001863,2]
[371737615,1752408657891,-661.39,0.0001863,2]
[371737616,1752408657901,-460.0,0.0001863,2]
[371737617,1752408657910,-257.35,0.0001863,2]
[371737618,1752408657920,-426.76,0.0001863,2]
[371737619,1752408657929,-1329.88,0.0001863,2]
[371737620,1752408657939,-476.56,0.0001863,2]
[371737621,1752408657948,-2597.34,0.0001863,2]
[371737622,1752408657958,-1127.18,0.0001863,2]
[371737623,1752408657967,-460.0,0.0001863,2]
[371737624,1752408657976,-460.0,0.0001863,2]
[371737625,1752408657986,-460.0,0.0001863,2]
[371737626,1752408657995,-707.62,0.0001863,2]
[371737627,1752408658005,-460.0,0.0001863,2]
[371737628,1752408658014,-500.94,0.0001863,2]
[371737629,1752408658024,-460.0,0.0001863,2]
[371737630,1752408658033,-602.57,0.0001863,2]
[371737631,1752408658042,-939.64,0.0001863,2]
[371737632,1752408658051,-253.7,0.0001863,2]
[371737633,1752408658060,-460.0,0.0001863,2]
[371737634,1752408658070,-1083.77,0.0001863,2]
[371737635,1752408658079,-525.69,0.0001863,2]
[371737636,1752408658088,-407.58,0.0001863,2]
[371737637,1752408658098,-460.0,0.0001863,2]
[371737638,1752408658108,-460.0,0.0001863,2]
[371737639,1752408658118,-460.0,0.0001863,2]
[371737640,1752408658127,-662.48,0.0001863,2]
[371737641,1752408658137,-440.82494386,0.0001863,2]
[371737642,1752408658146,-460.0,0.0001863,2]
[371737643,1752408658157,-460.0,0.0001863,2]
[371737644,1752408658167,-2526.29,0.0001863,2]
[371737645,1752408658177,-694.75,0.0001863,2]
[371737646,1752408658187,-1097.19,0.0001863,2]
[371737647,1752408658196,-460.0,0.0001863,2]
[371737648,1752408658206,-578.96,0.0001863,2]
[371737649,1752408658215,-560.96,0.0001863,2]
[371737650,1752408658226,-1292.24,0.0001863,2]
[371737651,1752408658235,-500.0,0.00018668,2]
[371737652,1752408658246,-2899.58639643,0.00018762,2]
[371737653,1752408658255,-289.935429,0.00018904,2]
[371737654,1752408658265,-289.935429,0.00018904,2]
[371737655,1752408658275,-257.12883024,0.00018904,2]
[371737656,1752408658284,-545.2,0.00018904,2]
[371737657,1752408658294,-591.03,0.00018904,2]
[371737658,1752408658303,-238.845428,0.00018904,2]
[371737659,1752408658313,-460.0,0.00018904,2]
[371737660,1752408658322,-238.845428,0.00018904,2]
[371737661,1752408658332,-460.0,0.00018904,2]
[371737662,1752408658341,-460.0,0.00018904,2]
[371737663,1752408658351,-510.43,0.00018904,2]
[371737664,1752408658360,-460.0,0.00018904,2]
[371737665,1752408658372,-460.0,0.00018904,2]
[371737666,1752408658383,-460.0,0.00018904,2]
[371737667,1752408658392,-460.0,0.00018904,2]
[371737668,1752408658403,-681.44,0.00018904,2]
[371737669,1752408658414,-460.0,0.00018904,2]
[371737670,1752408658423,-535.71,0.00018904,2]
[371737671,1752408658432,-460.0,0.00018904,2]
[371737672,1752408658443,-2008.35,0.00018904,2]
[371737673,1752408658453,-509.47,0.00018904,2]
[371737674,1752408658464,-460.0,0.00018904,2]
[371737675,1752408658473,-625.25,0.00018904,2]
[371737676,1752408658483,-460.0,0.00018904,2]
[371737677,1752408658492,-480.85,0.00018904,2]
[371737678,1752408658501,-860.44,0.00018904,2]
[371737679,1752408658511,-2541.88,0.00018904,2]
[371737680,1752408658521,-460.0,0.00018904,2]
[371737681,1752408658530,-508.56,0.00018904,2]
[371737682,1752408658540,-1859.21,0.00018904,2]
[371737683,1752408658549,-796.49,0.00018904,2]
[371737684,1752408658559,-460.0,0.00018904,2]
[371737685,1752408658568,-460.0,0.00018904,2]
[371737686,1752408658577,-593.15,0.00018904,2]
[371737687,1752408658587,-661.39,0.00018904,2]
[371737688,1752408658596,-460.0,0.00018904,2]
[371737689,1752408658606,-1329.88,0.00018904,2]
[371737690,1752408658616,-476.56,0.00018904,2]
[371737691,1752408658628,-2597.34,0.00018904,2]
[371737692,1752408658639,-1127.18,0.00018904,2]
[371737693,1752408658651,-460.0,0.00018904,2]
[371737694,1752408658677,-460.0,0.00018904,2]
[371737695,1752408658701,-460.0,0.00018904,2]
[371737696,1752408658710,-707.62,0.00018904,2]
[371737697,1752408658720,-460.0,0.00018904,2]
[371737698,1752408658728,-500.94,0.00018904,2]
[371737699,1752408658737,-272.86,0.00018904,2]
[371737700,1752408658746,-602.57,0.00018904,2]
[371737701,1752408658755,-939.64,0.00018904,2]
[371737702,1752408658765,-460.0,0.00018904,2]
[371737703,1752408658774,-1083.77,0.00018904,2]
[371737704,1752408658783,-525.69,0.00018904,2]
[371737705,1752408658792,-460.0,0.00018904,2]
[371737706,1752408658801,-460.0,0.00018904,2]
[371737707,1752408658810,-460.0,0.00018904,2]
[371737708,1752408658819,-662.48,0.00018904,2]
[371737709,1752408658828,-460.0,0.00018904,2]
[371737710,1752408658838,-460.0,0.00018904,2]
[371737711,1752408658846,-2526.29,0.00018904,2]
[371737712,1752408658855,-694.75,0.00018904,2]
[371737713,1752408658864,-1097.19,0.00018904,2]
[371737714,1752408658873,-525.32257468,0.00018904,2]
[371737715,1752408658883,-578.96,0.00018904,2]
[371737716,1752408658894,-560.96,0.00018904,2]
[371737717,1752408658905,-1292.24,0.00018904,2]
[371737718,1752408658914,-260.0,0.00018926,2]
[371737719,1752408658923,-510.08387321,0.00018964,2]
[371737720,1752408658932,-1836.55255679,0.00018964,2]
[371737721,1752408658941,-1000.0,0.00018964,2]
[371737722,1752408658951,-503.07991612,0.00018978,2]
[371737723,1752408658960,-1000.0,0.00018978,2]
[371737724,1752408658970,-1000.0,0.00018978,2]
[371737725,1752408658979,-500.0,0.00018978,2]
[371737726,1752408658988,-151.0,0.00019072,2]
[371737727,1752408658998,-151.0,0.00019072,2]
[371737728,1752408659008,-2899.58639643,0.00019072,2]
[371737729,1752408659018,-151.0,0.00019176,2]
[371737730,1752408659027,-216.764323,0.00019178,2]
[371737731,1752408659037,-216.764323,0.00019178,2]
[371737732,1752408659046,-545.2,0.00019178,2]
[371737733,1752408659055,-591.03,0.00019178,2]
[371737734,1752408659065,-460.0,0.00019178,2]
[371737735,1752408659074,-460.0,0.00019178,2]
[371737736,1752408659084,-527.17368822,0.00019178,2]
[371737737,1752408659093,-460.0,0.00019178,2]
[371737738,1752408659103,-460.0,0.00019178,2]
[371737739,1752408659112,-460.0,0.00019178,2]
[371737740,1752408659121,-460.0,0.00019178,2]
[371737741,1752408659130,-460.0,0.00019178,2]
[371737742,1752408659139,-460.0,0.00019178,2]
[371737743,1752408659149,-460.0,0.00019178,2]
[371737744,1752408659158,-460.0,0.00019178,2]
[371737745,1752408659168,-510.43,0.00019178,2]
[371737746,1752408659178,-460.0,0.00019178,2]
[371737747,1752408659187,-237.74216705,0.00019178,2]
[371737748,1752408659197,-460.0,0.00019178,2]
[371737749,1752408659206,-460.0,0.00019178,2]
[371737750,1752408659216,-681.44,0.00019178,2]
[371737751,1752408659225,-151.0,0.00019178,2]
[371737752,1752408659235,-460.0,0.00019178,2]
[371737753,1752408659244,-535.71,0.00019178,2]
[371737754,1752408659254,-460.0,0.00019178,2]
[371737755,1752408659264,-2008.35,0.00019178,2]
[371737756,1752408659273,-246.529174,0.00019178,2]
[371737757,1752408659283,-509.47,0.00019178,2]
[371737758,1752408659293,-460.0,0.00019178,2]
[371737759,1752408659303,-246.529174,0.00019178,2]
[371737760,1752408659312,-625.25,0.00019178,2]
[371737761,1752408659321,-460.0,0.00019178,2]
[371737762,1752408659331,-480.85,0.00019178,2]
[371737763,1752408659340,-860.44,0.00019178,2]
[371737764,1752408659350,-2541.88,0.00019178,2]
[371737765,1752408659359,-460.0,0.00019178,2]
[371737766,1752408659369,-508.56,0.00019178,2]
[371737767,1752408659381,-1859.21,0.00019178,2]
[371737768,1752408659390,-796.49,0.00019178,2]
[371737769,1752408659400,-460.0,0.00019178,2]
[371737770,1752408659409,-460.0,0.00019178,2]
[371737771,1752408659418,-593.15,0.00019178,2]
[371737772,1752408659428,-661.39,0.00019178,2]
[371737773,1752408659437,-156.31843284,0.00019178,2]
[371737774,1752408659447,-1329.88,0.00019178,2]
[371737775,1752408659457,-476.56,0.00019178,2]
[371737776,1752408659467,-2597.34,0.00019178,2]
[371737777,1752408659476,-1127.18,0.00019178,2]
[371737778,1752408659485,-460.0,0.00019178,2]
[371737779,1752408659496,-460.0,0.00019178,2]
[371737780,1752408659506,-460.0,0.00019178,2]
[371737781,1752408659517,-707.62,0.00019178,2]
[371737782,1752408659527,-460.0,0.00019178,2]
[371737783,1752408659536,-500.94,0.00019178,2]
[371737784,1752408659547,-602.57,0.00019178,2]
[371737785,1752408659556,-939.64,0.00019178,2]
[371737786,1752408659567,-460.0,0.00019178,2]
[371737787,1752408659577,-1083.77,0.00019178,2]
[371737788,1752408659586,-525.69,0.00019178,2]
[371737789,1752408659595,-460.0,0.00019178,2]
[371737790,1752408659605,-460.0,0.00019178,2]
[371737791,1752408659614,-460.0,0.00019178,2]
[371737792,1752408659623,-662.48,0.00019178,2]
[371737793,1752408659632,-460.0,0.00019178,2]
[371737794,1752408659642,-460.0,0.00019178,2]
[371737795,1752408659652,-2526.29,0.00019178,2]
[371737796,1752408659662,-694.75,0.00019178,2]
[371737797,1752408659672,-1097.19,0.00019178,2]
[371737798,1752408659682,-578.96,0.00019178,2]
[371737799,1752408659691,-560.96,0.00019178,2]
[371737800,1752408659701,-666.0,0.00019178,2]
[371737801,1752408659711,-372.756912,0.00019178,2]
[371737802,1752408659720,-855.24,0.000192,2]
[371737803,1752408659731,-2650.39,0.000192,2]
[371737804,1752408659742,-17379.31,0.000192,2]
[371737805,1752408659753,-500.0,0.00019312,2]
[371737806,1752408659762,-151.0,0.00019328,2]
[371737807,1752408659772,-151.0,0.00019329,2]
[371737808,1752408659781,-289.935429,0.00019329,2]
[371737809,1752408659792,-289.935429,0.00019329,2]
[371737810,1752408659802,-238.845428,0.00019329,2]
[371737811,1752408659812,-238.845428,0.00019329,2]
[371737812,1752408659822,-152.56476,0.00019329,2]
[371737813,1752408659833,-100000.0,0.00019329,2]
[371737814,1752408659844,-2899.58639643,0.00019383,2]
[371737815,1752408659854,-216.764323,0.00019452,2]
[371737816,1752408659864,-216.764323,0.00019452,2]
[371737817,1752408659875,-545.2,0.00019452,2]
[371737818,1752408659980,-591.03,0.00019452,2]
[371737819,1752408659991,-460.0,0.00019452,2]
[371737820,1752408660001,-510.43,0.00019452,2]
[371737821,1752408660011,-408.03,0.00019452,2]
[371737822,1752408660021,-460.0,0.00019452,2]
[371737823,1752408660031,-460.0,0.00019452,2]
[371737824,1752408660040,-681.44,0.00019452,2]
[371737825,1752408660050,-436.42,0.00019452,2]
[371737826,1752408660060,-535.71,0.00019452,2]
[371737827,1752408660070,-460.0,0.00019452,2]
[371737828,1752408660080,-2008.35,0.00019452,2]
[371737829,1752408660090,-509.47,0.00019452,2]
[371737830,1752408660099,-460.0,0.00019452,2]
[371737831,1752408660109,-625.25,0.00019452,2]
[371737832,1752408660119,-460.0,0.00019452,2]
[371737833,1752408660128,-480.85,0.00019452,2]
[371737834,1752408660137,-860.44,0.00019452,2]
[371737835,1752408660147,-2541.88,0.00019452,2]
[371737836,1752408660157,-460.0,0.00019452,2]
[371737837,1752408660167,-508.56,0.00019452,2]
[371737838,1752408660177,-1859.21,0.00019452,2]
[371737839,1752408660187,-796.49,0.00019452,2]
[371737840,1752408660196,-460.0,0.00019452,2]
[371737841,1752408660206,-460.0,0.00019452,2]
[371737842,1752408660215,-593.15,0.00019452,2]
[371737843,1752408660225,-661.39,0.00019452,2]
[371737844,1752408660235,-1329.88,0.00019452,2]
[371737845,1752408660245,-476.56,0.00019452,2]
[371737846,1752408660255,-2597.34,0.00019452,2]
[371737847,1752408660265,-1127.18,0.00019452,2]
[371737848,1752408660275,-460.0,0.00019452,2]
[371737849,1752408660285,-460.0,0.00019452,2]
[371737850,1752408660295,-460.0,0.00019452,2]
[371737851,1752408660306,-707.62,0.00019452,2]
[371737852,1752408660315,-460.0,0.00019452,2]
[371737853,1752408660325,-500.94,0.00019452,2]
[371737854,1752408660334,-602.57,0.00019452,2]
[371737855,1752408660344,-939.64,0.00019452,2]
[371737856,1752408660353,-460.0,0.00019452,2]
[371737857,1752408660363,-1083.77,0.00019452,2]
[371737858,1752408660374,-525.69,0.00019452,2]
[371737859,1752408660385,-460.0,0.00019452,2]
[371737860,1752408660395,-460.0,0.00019452,2]
[371737861,1752408660406,-460.0,0.00019452,2]
[371737862,1752408660416,-662.48,0.00019452,2]
[371737863,1752408660427,-460.0,0.00019452,2]
[371737864,1752408660437,-460.0,0.00019452,2]
[371737865,1752408660448,-2526.29,0.00019452,2]